[Event "Late-Titled-Tuesday-Blitz-September-05-2023"]
[Site "Chess.com"]
[Date "2023.09.05"]
[Round "10"]
[White "Beca95"]
[Black "ContrVersia"]
[Result "1-0"]
[WhiteElo "2975"]
[BlackElo "2897"]
[TimeControl "180+1"]
[EndTime "15:55:01 PDT"]
[Termination "Beca95 won by resignation"]

1. d4 {[%clk 0:03:00.9]} 1... Nf6 {[%clk 0:02:59.2]} 2. c4 {[%clk 0:03:01.6]}
2... e6 {[%clk 0:02:59.6]} 3. Nc3 {[%clk 0:03:02.3]} 3... Bb4 {[%clk 0:02:59.6]}
4. e3 {[%clk 0:03:03]} 4... b6 {[%clk 0:03:00.1]} 5. Ne2 {[%clk 0:03:01.9]} 5...
Ba6 {[%clk 0:03:00.3]} 6. a3 {[%clk 0:03:01.4]} 6... Bxc3+ {[%clk 0:03:00.8]} 7.
Nxc3 {[%clk 0:03:01.6]} 7... d5 {[%clk 0:03:01.5]} 8. b3 {[%clk 0:02:38.1]} 8...
O-O {[%clk 0:03:00.9]} 9. Bb2 {[%clk 0:02:37.1]} 9... dxc4 {[%clk 0:02:56.4]}
10. bxc4 {[%clk 0:02:36.2]} 10... Nc6 {[%clk 0:02:56.5]} 11. Bd3 {[%clk
0:01:36.6]} 11... Na5 {[%clk 0:02:55.9]} 12. Qe2 {[%clk 0:01:36.8]} 12... c5
{[%clk 0:02:49.6]} 13. dxc5 {[%clk 0:01:36]} 13... Nb3 {[%clk 0:02:47.1]} 14.
Rd1 {[%clk 0:01:35.4]} 14... Qe7 {[%clk 0:02:35.9]} 15. cxb6 {[%clk 0:01:35.4]}
15... axb6 {[%clk 0:02:32.4]} 16. O-O {[%clk 0:01:34.9]} 16... Nc5 {[%clk
0:02:32.1]} 17. Bb1 {[%clk 0:01:34.9]} 17... Rfc8 {[%clk 0:02:23.3]} 18. Rd4
{[%clk 0:01:30]} 18... Nb3 {[%clk 0:02:18.1]} 19. Rh4 {[%clk 0:01:28.5]} 19...
h6 {[%clk 0:02:13.9]} 20. Nb5 {[%clk 0:01:25.4]} 20... Na5 {[%clk 0:02:08.7]}
21. a4 {[%clk 0:01:20.2]} 21... e5 {[%clk 0:01:51.3]} 22. Bf5 {[%clk 0:01:08.4]}
22... Nd7 {[%clk 0:01:13.4]} 23. Rg4 {[%clk 0:01:01.8]} 23... Rc6 {[%clk
0:00:46]} 24. Be4 {[%clk 0:00:57.4]} 24... Rac8 {[%clk 0:00:41.2]} 25. Ba3
{[%clk 0:00:51.9]} 25... Qe6 {[%clk 0:00:37.2]} 26. Bd5 {[%clk 0:00:51.8]} 26...
Qf5 {[%clk 0:00:37.3]} 27. e4 {[%clk 0:00:51.2]} 27... Qf6 {[%clk 0:00:37.3]}
28. f4 {[%clk 0:00:46.7]} 28... Re6 {[%clk 0:00:20.6]} 29. f5 {[%clk 0:00:44.5]}
29... Rec6 {[%clk 0:00:18.7]} 30. Rg6 {[%clk 0:00:45]} 30... Qd8 {[%clk
0:00:09.1]} 31. Qg4 {[%clk 0:00:35.5]} 31... Nf6 {[%clk 0:00:04.2]} 32. Bxf7+
{[%clk 0:00:25.6]} 32... Kh8 {[%clk 0:00:04.6]} 33. Qh4 {[%clk 0:00:21.5]} 33...
Bxb5 {[%clk 0:00:02.6]} 34. axb5 {[%clk 0:00:16.1]} 34... Rxc4 {[%clk
0:00:02.5]} 35. Bxc4 {[%clk 0:00:16.1]} 35... Nxc4 {[%clk 0:00:03.4]} 36. Bc1
{[%clk 0:00:15.2]} 36... Qd4+ {[%clk 0:00:03.6]} 37. Kh1 {[%clk 0:00:15.3]}
37... Qxe4 {[%clk 0:00:04.1]} 38. Rxh6+ {[%clk 0:00:14.2]} 38... gxh6 {[%clk
0:00:03.4]} 39. Qxf6+ {[%clk 0:00:14.9]} 39... Kg8 {[%clk 0:00:03.8]} 40. Qe6+
{[%clk 0:00:14.8]} 1-0

[Event "Late-Titled-Tuesday-Blitz-September-05-2023"]
[Site "Chess.com"]
[Date "2023.09.05"]
[Round "10"]
[White "HajiyevKanan"]
[Black "valemava"]
[Result "0-1"]
[WhiteElo "2450"]
[BlackElo "2308"]
[TimeControl "180+1"]
[EndTime "15:55:01 PDT"]
[Termination "valemava won on time"]

1. d4 {[%clk 0:02:32.4]} 1... c6 {[%clk 0:02:58.7]} 2. Nf3 {[%clk 0:02:32.4]}
2... b5 {[%clk 0:02:57.8]} 3. c4 {[%clk 0:02:33.3]} 3... bxc4 {[%clk 0:02:57.8]}
4. d5 {[%clk 0:02:33.2]} 4... Qa5+ {[%clk 0:02:49.6]} 5. Nc3 {[%clk 0:02:32.7]}
5... Nf6 {[%clk 0:02:44.8]} 6. dxc6 {[%clk 0:02:19.9]} 6... Nxc6 {[%clk
0:02:43.8]} 7. Bd2 {[%clk 0:01:54]} 7... e6 {[%clk 0:02:40.7]} 8. e4 {[%clk
0:01:51]} 8... Bb4 {[%clk 0:02:27]} 9. Bxc4 {[%clk 0:01:40]} 9... Ba6 {[%clk
0:02:23]} 10. Bxa6 {[%clk 0:01:28.1]} 10... Qxa6 {[%clk 0:02:23.9]} 11. Qe2
{[%clk 0:01:28.6]} 11... Qxe2+ {[%clk 0:02:21.9]} 12. Kxe2 {[%clk 0:01:29]}
12... Bxc3 {[%clk 0:02:19.6]} 13. Bxc3 {[%clk 0:01:29.5]} 13... Nxe4 {[%clk
0:02:19.8]} 14. Bxg7 {[%clk 0:01:27.3]} 14... Rg8 {[%clk 0:02:19.4]} 15. Bh6
{[%clk 0:01:15.5]} 15... Rxg2 {[%clk 0:02:16.1]} 16. Bf4 {[%clk 0:01:04.4]}
16... Rxf2+ {[%clk 0:02:11.3]} 17. Ke3 {[%clk 0:01:04.2]} 17... d5 {[%clk
0:02:11.4]} 18. Ng5 {[%clk 0:00:46.8]} 18... Rxb2 {[%clk 0:01:59.2]} 19. Nxe4
{[%clk 0:00:46.4]} 19... dxe4 {[%clk 0:02:00.1]} 20. Kxe4 {[%clk 0:00:44.7]}
20... Rd8 {[%clk 0:01:53.9]} 21. Be3 {[%clk 0:00:33.1]} 21... Rb4+ {[%clk
0:01:41.6]} 22. Kf3 {[%clk 0:00:31.4]} 22... f5 {[%clk 0:01:41.1]} 23. Rhd1
{[%clk 0:00:30.5]} 23... Ne5+ {[%clk 0:01:32.9]} 24. Kg3 {[%clk 0:00:28]} 24...
Nd3 {[%clk 0:01:13]} 25. Kf3 {[%clk 0:00:20.5]} 25... e5 {[%clk 0:01:10.6]} 26.
Bxa7 {[%clk 0:00:17.8]} 26... Rd7 {[%clk 0:01:05]} 27. Be3 {[%clk 0:00:16.2]}
27... e4+ {[%clk 0:01:00.2]} 28. Kg3 {[%clk 0:00:16.7]} 28... Rg7+ {[%clk
0:00:57.4]} 29. Kh3 {[%clk 0:00:14.7]} 29... f4 {[%clk 0:00:56.8]} 30. Bg1
{[%clk 0:00:01.8]} 30... Rb5 {[%clk 0:00:55.1]} 31. Kh4 {[%clk 0:00:02.4]} 31...
Ne5 {[%clk 0:00:45.3]} 32. Rf1 {[%clk 0:00:02.8]} 32... Nf3+ {[%clk 0:00:44]}
33. Rxf3 {[%clk 0:00:03.3]} 33... exf3 {[%clk 0:00:44.3]} 34. Re1+ {[%clk
0:00:03.5]} 34... Kf7 {[%clk 0:00:43.9]} 35. Bd4 {[%clk 0:00:03.5]} 35... Rg2
{[%clk 0:00:41.6]} 36. Rf1 {[%clk 0:00:03.2]} 36... Rxh2+ {[%clk 0:00:40.4]} 37.
Kg4 {[%clk 0:00:03.8]} 37... Rd2 {[%clk 0:00:40.3]} 38. Ba1 {[%clk 0:00:02.5]}
38... Rd3 {[%clk 0:00:38.8]} 39. a3 {[%clk 0:00:02.4]} 39... Rbb3 {[%clk
0:00:38.4]} 40. Kxf4 {[%clk 0:00:02.9]} 40... Rxa3 {[%clk 0:00:38.5]} 41. Be5
{[%clk 0:00:03.6]} 41... Ra4+ {[%clk 0:00:37.6]} 42. Kg3 {[%clk 0:00:03.4]}
42... Ke6 {[%clk 0:00:37.6]} 43. Bf4 {[%clk 0:00:03.4]} 43... Kf5 {[%clk
0:00:37.4]} 44. Bc1 {[%clk 0:00:03.2]} 44... Rg4+ {[%clk 0:00:36.6]} 45. Kh3
{[%clk 0:00:02.8]} 45... h5 {[%clk 0:00:35.7]} 46. Rf2 {[%clk 0:00:02.2]} 46...
Ke4 {[%clk 0:00:35.5]} 47. Bh6 {[%clk 0:00:02.4]} 47... Rd1 {[%clk 0:00:35.7]}
48. Kh2 {[%clk 0:00:02]} 48... Re1 {[%clk 0:00:34.9]} 0-1

[Event "Late-Titled-Tuesday-Blitz-September-05-2023"]
[Site "Chess.com"]
[Date "2023.09.05"]
[Round "10"]
[White "BogdanDeac"]
[Black "jcibarra"]
[Result "1-0"]
[WhiteElo "3010"]
[BlackElo "2906"]
[TimeControl "180+1"]
[EndTime "15:55:06 PDT"]
[Termination "BogdanDeac won by resignation"]

1. e4 {[%clk 0:03:00.9]} 1... c5 {[%clk 0:02:58.6]} 2. Nf3 {[%clk 0:03:01.1]}
2... e6 {[%clk 0:02:58.9]} 3. d4 {[%clk 0:03:01.8]} 3... cxd4 {[%clk 0:02:59.5]}
4. Nxd4 {[%clk 0:03:02.7]} 4... Bc5 {[%clk 0:02:59.6]} 5. Be3 {[%clk 0:02:14.6]}
5... Qb6 {[%clk 0:02:54.8]} 6. Na3 {[%clk 0:01:54.1]} 6... d5 {[%clk 0:02:53.9]}
7. exd5 {[%clk 0:01:37.4]} 7... exd5 {[%clk 0:02:53.8]} 8. c3 {[%clk 0:01:36.1]}
8... Bxa3 {[%clk 0:02:35.1]} 9. Qa4+ {[%clk 0:01:32.1]} 9... Bd7 {[%clk
0:02:12.4]} 10. Qxa3 {[%clk 0:01:31.8]} 10... Qg6 {[%clk 0:02:12.6]} 11. O-O-O
{[%clk 0:01:29.3]} 11... Ne7 {[%clk 0:01:54.8]} 12. Re1 {[%clk 0:01:19.3]} 12...
Qf6 {[%clk 0:01:47.3]} 13. h4 {[%clk 0:01:15.7]} 13... h6 {[%clk 0:01:42.2]} 14.
Nb5 {[%clk 0:01:05.9]} 14... O-O {[%clk 0:01:15.5]} 15. Qd6 {[%clk 0:00:24]}
15... Qxd6 {[%clk 0:00:59.8]} 16. Nxd6 {[%clk 0:00:23.6]} 16... b6 {[%clk
0:00:46.7]} 17. Bxh6 {[%clk 0:00:20.6]} 17... Nf5 {[%clk 0:00:35.9]} 18. Nxf5
{[%clk 0:00:17.7]} 18... Bxf5 {[%clk 0:00:36.8]} 19. Be3 {[%clk 0:00:12.6]}
19... Nc6 {[%clk 0:00:37]} 20. Bb5 {[%clk 0:00:12.7]} 20... Rac8 {[%clk
0:00:36.3]} 21. Rd1 {[%clk 0:00:05.2]} 21... Rfd8 {[%clk 0:00:33.6]} 22. Bd4
{[%clk 0:00:05.2]} 22... Na5 {[%clk 0:00:29.2]} 23. Rhe1 {[%clk 0:00:04.2]}
23... Nc4 {[%clk 0:00:24.1]} 24. f3 {[%clk 0:00:04.6]} 24... Nd6 {[%clk
0:00:22.8]} 25. Ba6 {[%clk 0:00:04.2]} 25... Rc7 {[%clk 0:00:22.7]} 26. Bd3
{[%clk 0:00:04.4]} 26... Bxd3 {[%clk 0:00:14.4]} 27. Rxd3 {[%clk 0:00:05.3]}
27... Nf5 {[%clk 0:00:15]} 28. h5 {[%clk 0:00:05.8]} 28... Ng3 {[%clk 0:00:12]}
29. Be5 {[%clk 0:00:05.8]} 29... Re7 {[%clk 0:00:08.4]} 30. Bxg3 {[%clk
0:00:05.8]} 30... Rxe1+ {[%clk 0:00:06.1]} 31. Bxe1 {[%clk 0:00:06.7]} 31... Kh7
{[%clk 0:00:06.3]} 32. g4 {[%clk 0:00:06.7]} 32... Kh6 {[%clk 0:00:06.7]} 33.
Bd2+ {[%clk 0:00:06.7]} 33... Kh7 {[%clk 0:00:07.4]} 34. Rd4 {[%clk 0:00:07.2]}
34... f6 {[%clk 0:00:07.8]} 35. Kd1 {[%clk 0:00:07.4]} 35... Kg8 {[%clk
0:00:07.4]} 36. f4 {[%clk 0:00:07.4]} 36... b5 {[%clk 0:00:07.5]} 37. f5 {[%clk
0:00:07.3]} 37... Kf7 {[%clk 0:00:08]} 38. a4 {[%clk 0:00:07.9]} 38... a6 {[%clk
0:00:08.2]} 39. axb5 {[%clk 0:00:08.1]} 39... axb5 {[%clk 0:00:09.1]} 40. Ke2
{[%clk 0:00:08.7]} 40... Re8+ {[%clk 0:00:09.3]} 41. Kf3 {[%clk 0:00:08.9]}
41... Re5 {[%clk 0:00:09.4]} 42. Bf4 {[%clk 0:00:09.1]} 1-0

[Event "Late-Titled-Tuesday-Blitz-September-05-2023"]
[Site "Chess.com"]
[Date "2023.09.05"]
[Round "10"]
[White "Taran2004"]
[Black "2k28Lakers"]
[Result "0-1"]
[WhiteElo "2421"]
[BlackElo "2544"]
[TimeControl "180+1"]
[EndTime "15:55:06 PDT"]
[Termination "2k28Lakers won by resignation"]

1. e4 {[%clk 0:03:00.9]} 1... e5 {[%clk 0:02:53.8]} 2. Nf3 {[%clk 0:03:00.6]}
2... Nc6 {[%clk 0:02:54]} 3. d4 {[%clk 0:03:00.6]} 3... exd4 {[%clk 0:02:54.9]}
4. Nxd4 {[%clk 0:02:59.5]} 4... Nf6 {[%clk 0:02:55.1]} 5. Nxc6 {[%clk
0:02:59.1]} 5... bxc6 {[%clk 0:02:54.4]} 6. e5 {[%clk 0:02:50.2]} 6... Qe7
{[%clk 0:02:54.5]} 7. Qe2 {[%clk 0:02:49.7]} 7... Nd5 {[%clk 0:02:54.7]} 8. h4
{[%clk 0:02:46.4]} 8... Qe6 {[%clk 0:02:54.8]} 9. g3 {[%clk 0:02:42.1]} 9... d6
{[%clk 0:02:50.3]} 10. exd6 {[%clk 0:02:39.6]} 10... Bxd6 {[%clk 0:02:42.5]} 11.
Qxe6+ {[%clk 0:02:26.7]} 11... Bxe6 {[%clk 0:02:43.4]} 12. Bg2 {[%clk 0:02:27]}
12... Nb4 {[%clk 0:02:27.4]} 13. Na3 {[%clk 0:02:19.7]} 13... O-O-O {[%clk
0:02:26.2]} 14. O-O {[%clk 0:02:19.4]} 14... Rhe8 {[%clk 0:02:26]} 15. Be3
{[%clk 0:02:17.7]} 15... Kb8 {[%clk 0:02:24.7]} 16. c3 {[%clk 0:02:14.1]} 16...
Nd5 {[%clk 0:02:22.9]} 17. Bd4 {[%clk 0:02:14]} 17... f6 {[%clk 0:02:22.7]} 18.
Rfe1 {[%clk 0:02:10.2]} 18... Bf7 {[%clk 0:02:12.5]} 19. Nc4 {[%clk 0:01:55.4]}
19... c5 {[%clk 0:02:02.5]} 20. Be3 {[%clk 0:01:55.3]} 20... Nxe3 {[%clk
0:01:57]} 21. Nxe3 {[%clk 0:01:56.2]} 21... g6 {[%clk 0:01:54.1]} 22. Bd5 {[%clk
0:01:51.6]} 22... Be6 {[%clk 0:01:51]} 23. Bxe6 {[%clk 0:01:39.9]} 23... Rxe6
{[%clk 0:01:51.9]} 24. Nc4 {[%clk 0:01:34.7]} 24... Rde8 {[%clk 0:01:49.7]} 25.
Kf1 {[%clk 0:01:33]} 25... Kb7 {[%clk 0:01:43.6]} 26. Rxe6 {[%clk 0:01:32.3]}
26... Rxe6 {[%clk 0:01:44.5]} 27. Re1 {[%clk 0:01:32.1]} 27... Rxe1+ {[%clk
0:01:44.9]} 28. Kxe1 {[%clk 0:01:33]} 28... Kc6 {[%clk 0:01:45.4]} 29. Ke2
{[%clk 0:01:31.7]} 29... Kd5 {[%clk 0:01:45.6]} 30. Kd3 {[%clk 0:01:31.9]} 30...
f5 {[%clk 0:01:39.9]} 31. Ne3+ {[%clk 0:01:29.6]} 31... Ke5 {[%clk 0:01:36.5]}
32. Nc4+ {[%clk 0:01:22.4]} 32... Kd5 {[%clk 0:01:36.3]} 33. Nd2 {[%clk
0:01:22.7]} 33... Be7 {[%clk 0:01:14.7]} 34. Ke3 {[%clk 0:01:13.5]} 34... c4
{[%clk 0:01:03.6]} 35. Nf3 {[%clk 0:01:07.9]} 35... h6 {[%clk 0:00:52.4]} 36. b3
{[%clk 0:01:05.7]} 36... Bf6 {[%clk 0:00:46.7]} 37. Nd2 {[%clk 0:01:01.8]} 37...
cxb3 {[%clk 0:00:44.8]} 38. c4+ {[%clk 0:00:54.5]} 38... Kc5 {[%clk 0:00:44.9]}
39. axb3 {[%clk 0:00:53.5]} 39... Kb4 {[%clk 0:00:45.4]} 40. h5 {[%clk
0:00:50.6]} 40... g5 {[%clk 0:00:41.3]} 41. Kd3 {[%clk 0:00:38.1]} 41... Bc3
{[%clk 0:00:39.9]} 42. Nb1 {[%clk 0:00:38.3]} 42... Be1 {[%clk 0:00:40]} 43. f4
{[%clk 0:00:35.3]} 43... gxf4 {[%clk 0:00:37.1]} 44. gxf4 {[%clk 0:00:36.2]}
44... Bg3 {[%clk 0:00:37.5]} 45. Ke3 {[%clk 0:00:32.9]} 45... Kxb3 {[%clk
0:00:36.7]} 46. Nd2+ {[%clk 0:00:33.5]} 46... Kb4 {[%clk 0:00:31.9]} 47. Nf3
{[%clk 0:00:33.6]} 47... a5 {[%clk 0:00:30.9]} 48. Nd4 {[%clk 0:00:33.8]} 48...
a4 {[%clk 0:00:27.2]} 49. Nxf5 {[%clk 0:00:32.1]} 49... a3 {[%clk 0:00:26.7]}
50. Nd4 {[%clk 0:00:32.3]} 50... a2 {[%clk 0:00:20.6]} 51. f5 {[%clk 0:00:29.5]}
51... Be5 {[%clk 0:00:21.5]} 52. Nc2+ {[%clk 0:00:29.3]} 52... Kb3 {[%clk
0:00:21.7]} 53. Ke4 {[%clk 0:00:29]} 53... Kxc2 {[%clk 0:00:21.6]} 0-1

[Event "Late-Titled-Tuesday-Blitz-September-05-2023"]
[Site "Chess.com"]
[Date "2023.09.05"]
[Round "10"]
[White "eljanov"]
[Black "Russian_berezka"]
[Result "1-0"]
[WhiteElo "2891"]
[BlackElo "2618"]
[TimeControl "180+1"]
[EndTime "15:55:09 PDT"]
[Termination "eljanov won on time"]

1. d4 {[%clk 0:03:00.9]} 1... Nf6 {[%clk 0:02:56.1]} 2. c4 {[%clk 0:03:01.1]}
2... e6 {[%clk 0:02:56.6]} 3. Nc3 {[%clk 0:03:01]} 3... Bb4 {[%clk 0:02:57.2]}
4. e3 {[%clk 0:03:01]} 4... O-O {[%clk 0:02:57.5]} 5. Bd3 {[%clk 0:03:01.3]}
5... d5 {[%clk 0:02:58.1]} 6. a3 {[%clk 0:03:01.8]} 6... Bxc3+ {[%clk
0:02:57.8]} 7. bxc3 {[%clk 0:03:02.7]} 7... dxc4 {[%clk 0:02:58.5]} 8. Bxc4
{[%clk 0:03:03.3]} 8... c5 {[%clk 0:02:59.2]} 9. Nf3 {[%clk 0:03:03.9]} 9... Qc7
{[%clk 0:02:59.5]} 10. Be2 {[%clk 0:03:04.5]} 10... b6 {[%clk 0:02:49.1]} 11.
O-O {[%clk 0:03:04.2]} 11... Bb7 {[%clk 0:02:49.3]} 12. Bb2 {[%clk 0:03:04.3]}
12... Nbd7 {[%clk 0:02:36.3]} 13. c4 {[%clk 0:03:03.7]} 13... Rfd8 {[%clk
0:02:23.8]} 14. Re1 {[%clk 0:03:04]} 14... cxd4 {[%clk 0:02:18.8]} 15. exd4
{[%clk 0:03:03.8]} 15... Nc5 {[%clk 0:02:18.8]} 16. h3 {[%clk 0:02:40.2]} 16...
h6 {[%clk 0:02:16.6]} 17. a4 {[%clk 0:02:34.5]} 17... Rac8 {[%clk 0:02:13]} 18.
Ra3 {[%clk 0:02:30.4]} 18... a5 {[%clk 0:02:08.4]} 19. Bf1 {[%clk 0:02:26.5]}
19... Nce4 {[%clk 0:02:00.6]} 20. Ne5 {[%clk 0:02:20.1]} 20... Nd6 {[%clk
0:01:54.8]} 21. Bd3 {[%clk 0:02:03.3]} 21... Be4 {[%clk 0:01:49]} 22. Bxe4
{[%clk 0:01:55.6]} 22... Nfxe4 {[%clk 0:01:49.9]} 23. Rf3 {[%clk 0:01:37.1]}
23... f5 {[%clk 0:01:30.7]} 24. Qe2 {[%clk 0:01:15.6]} 24... Nxc4 {[%clk
0:01:25.5]} 25. Rc1 {[%clk 0:01:14.9]} 25... Nxe5 {[%clk 0:01:25.4]} 26. Rxc7
{[%clk 0:01:13.7]} 26... Nxf3+ {[%clk 0:01:25.8]} 27. gxf3 {[%clk 0:01:13.7]}
27... Rxc7 {[%clk 0:01:25.4]} 28. fxe4 {[%clk 0:01:14.1]} 28... Rcd7 {[%clk
0:01:03.4]} 29. d5 {[%clk 0:01:09.7]} 29... exd5 {[%clk 0:01:01.9]} 30. exf5
{[%clk 0:01:04.3]} 30... d4 {[%clk 0:00:59.9]} 31. Qe6+ {[%clk 0:01:04.5]} 31...
Kh7 {[%clk 0:00:51.9]} 32. f6 {[%clk 0:01:04.9]} 32... gxf6 {[%clk 0:00:47.6]}
33. Qf5+ {[%clk 0:01:01.5]} 33... Kg7 {[%clk 0:00:45.3]} 34. Bc1 {[%clk
0:01:00.4]} 34... d3 {[%clk 0:00:37.1]} 35. Bd2 {[%clk 0:01:00.3]} 35... Re7
{[%clk 0:00:31.5]} 36. Qg4+ {[%clk 0:00:55.4]} 36... Kf7 {[%clk 0:00:29.8]} 37.
Qh5+ {[%clk 0:00:52.9]} 37... Ke6 {[%clk 0:00:27.6]} 38. Qxh6 {[%clk 0:00:52.6]}
38... Rd6 {[%clk 0:00:21.6]} 39. h4 {[%clk 0:00:52.2]} 39... Kd7 {[%clk
0:00:20.6]} 40. h5 {[%clk 0:00:51.8]} 40... Re2 {[%clk 0:00:20.7]} 41. Qf4
{[%clk 0:00:51.1]} 41... Rd5 {[%clk 0:00:16.6]} 42. Kf1 {[%clk 0:00:44.7]} 42...
Ke6 {[%clk 0:00:10.9]} 43. h6 {[%clk 0:00:44.2]} 43... Rf5 {[%clk 0:00:10.2]}
44. h7 {[%clk 0:00:37.4]} 44... Rxf4 {[%clk 0:00:09.7]} 45. Bxf4 {[%clk
0:00:37.2]} 45... Kf5 {[%clk 0:00:04.7]} 46. Be3 {[%clk 0:00:32.7]} 46... Rc2
{[%clk 0:00:01.7]} 47. h8=Q {[%clk 0:00:31.6]} 1-0

[Event "Late-Titled-Tuesday-Blitz-September-05-2023"]
[Site "Chess.com"]
[Date "2023.09.05"]
[Round "10"]
[White "zeitnot2006"]
[Black "KrokerGuy"]
[Result "1-0"]
[WhiteElo "2743"]
[BlackElo "2504"]
[TimeControl "180+1"]
[EndTime "15:55:09 PDT"]
[Termination "zeitnot2006 won on time"]

1. e4 {[%clk 0:03:00.9]} 1... e5 {[%clk 0:01:59]} 2. Nc3 {[%clk 0:02:59.2]} 2...
Nf6 {[%clk 0:01:59.1]} 3. g3 {[%clk 0:02:59.6]} 3... d5 {[%clk 0:01:58.1]} 4.
exd5 {[%clk 0:03:00.2]} 4... Nxd5 {[%clk 0:01:59]} 5. Bg2 {[%clk 0:03:00.7]}
5... Nxc3 {[%clk 0:01:59.8]} 6. bxc3 {[%clk 0:03:01.5]} 6... Nc6 {[%clk
0:02:00.4]} 7. Nf3 {[%clk 0:03:01.2]} 7... Be6 {[%clk 0:02:01.1]} 8. Rb1 {[%clk
0:02:59.2]} 8... Rb8 {[%clk 0:02:00]} 9. a4 {[%clk 0:02:56.8]} 9... Be7 {[%clk
0:01:59.7]} 10. O-O {[%clk 0:02:54.1]} 10... O-O {[%clk 0:01:56.3]} 11. Re1
{[%clk 0:02:53.5]} 11... Bf6 {[%clk 0:01:56]} 12. d3 {[%clk 0:02:52.5]} 12...
Re8 {[%clk 0:01:55.4]} 13. c4 {[%clk 0:02:51.2]} 13... Qd7 {[%clk 0:01:55.3]}
14. Bb2 {[%clk 0:02:48.9]} 14... Bh3 {[%clk 0:01:56]} 15. Bxh3 {[%clk
0:02:44.8]} 15... Qxh3 {[%clk 0:01:56.9]} 16. Qe2 {[%clk 0:02:43.7]} 16... Re6
{[%clk 0:01:54.1]} 17. Qe4 {[%clk 0:02:40.4]} 17... b6 {[%clk 0:01:32.1]} 18.
Bc3 {[%clk 0:02:35.6]} 18... Nd8 {[%clk 0:01:16.6]} 19. Rb5 {[%clk 0:02:15.4]}
19... Nb7 {[%clk 0:01:12]} 20. Qe3 {[%clk 0:01:52.2]} 20... Nd6 {[%clk
0:01:06.6]} 21. Rbb1 {[%clk 0:01:51.1]} 21... e4 {[%clk 0:01:07]} 22. Nd4 {[%clk
0:01:47.7]} 22... Bxd4 {[%clk 0:01:01.3]} 23. Qxd4 {[%clk 0:01:48.6]} 23... Nf5
{[%clk 0:00:59.6]} 24. Qd5 {[%clk 0:01:41.3]} 24... Rh6 {[%clk 0:00:49]} 25.
Qxe4 {[%clk 0:01:38.7]} 25... Qxh2+ {[%clk 0:00:46.1]} 26. Kf1 {[%clk 0:01:39]}
26... Re6 {[%clk 0:00:36.1]} 27. Qg2 {[%clk 0:01:32.5]} 27... Qxg2+ {[%clk
0:00:31.3]} 28. Kxg2 {[%clk 0:01:33.4]} 28... Rbe8 {[%clk 0:00:31.5]} 29. Rxe6
{[%clk 0:01:32.7]} 29... Rxe6 {[%clk 0:00:32.4]} 30. a5 {[%clk 0:01:31.8]} 30...
f6 {[%clk 0:00:27.2]} 31. Kf3 {[%clk 0:01:24.5]} 31... Kf7 {[%clk 0:00:27]} 32.
a6 {[%clk 0:01:22.9]} 32... Ne7 {[%clk 0:00:17.4]} 33. Bd2 {[%clk 0:01:07.1]}
33... Nc6 {[%clk 0:00:16.3]} 34. Bf4 {[%clk 0:01:07.3]} 34... Nd4+ {[%clk
0:00:16.3]} 35. Kg2 {[%clk 0:01:06.3]} 35... Re7 {[%clk 0:00:09.8]} 36. c3
{[%clk 0:01:03.8]} 36... Ne6 {[%clk 0:00:06.2]} 37. Be3 {[%clk 0:01:02.8]} 37...
c5 {[%clk 0:00:06.7]} 38. d4 {[%clk 0:01:00.7]} 38... Rc7 {[%clk 0:00:03.4]} 39.
d5 {[%clk 0:00:59.9]} 39... Nf8 {[%clk 0:00:03.1]} 40. Bf4 {[%clk 0:00:54.7]}
40... Re7 {[%clk 0:00:03.1]} 41. Kf3 {[%clk 0:00:49.9]} 41... Nd7 {[%clk
0:00:03.5]} 42. Bd6 {[%clk 0:00:47.2]} 42... Ne5+ {[%clk 0:00:03.2]} 43. Ke2
{[%clk 0:00:23.8]} 43... Re8 {[%clk 0:00:02.5]} 44. Bxe5 {[%clk 0:00:24.6]}
44... Rxe5+ {[%clk 0:00:03.4]} 45. Kd3 {[%clk 0:00:25.1]} 45... Ke7 {[%clk
0:00:03.5]} 46. Rxb6 {[%clk 0:00:22]} 1-0

[Event "Late-Titled-Tuesday-Blitz-September-05-2023"]
[Site "Chess.com"]
[Date "2023.09.05"]
[Round "10"]
[White "boguszp"]
[Black "SEBAZZANO"]
[Result "0-1"]
[WhiteElo "2067"]
[BlackElo "2197"]
[TimeControl "180+1"]
[EndTime "15:55:13 PDT"]
[Termination "SEBAZZANO won on time"]

1. d4 {[%clk 0:03:00.9]} 1... Nf6 {[%clk 0:02:59.6]} 2. Bf4 {[%clk 0:02:58]}
2... c5 {[%clk 0:02:56.9]} 3. e3 {[%clk 0:02:53]} 3... cxd4 {[%clk 0:02:55.2]}
4. exd4 {[%clk 0:02:52]} 4... d6 {[%clk 0:02:55.2]} 5. Nd2 {[%clk 0:02:47.4]}
5... g6 {[%clk 0:02:54.3]} 6. c3 {[%clk 0:02:46.4]} 6... Bg7 {[%clk 0:02:54.1]}
7. Ngf3 {[%clk 0:02:45]} 7... O-O {[%clk 0:02:53.5]} 8. Bd3 {[%clk 0:02:45.4]}
8... a6 {[%clk 0:02:42.7]} 9. O-O {[%clk 0:02:41]} 9... Nc6 {[%clk 0:02:42.8]}
10. h3 {[%clk 0:02:40.2]} 10... Re8 {[%clk 0:02:42.4]} 11. Bh2 {[%clk
0:02:39.7]} 11... e5 {[%clk 0:02:18.2]} 12. Re1 {[%clk 0:02:33.2]} 12... Nh5
{[%clk 0:02:11.6]} 13. Nc4 {[%clk 0:02:23.5]} 13... exd4 {[%clk 0:01:51]} 14.
cxd4 {[%clk 0:02:15.2]} 14... Rxe1+ {[%clk 0:01:47.2]} 15. Qxe1 {[%clk
0:02:09.1]} 15... Nxd4 {[%clk 0:01:41]} 16. Nxd4 {[%clk 0:02:06.3]} 16... Bxd4
{[%clk 0:01:41.9]} 17. Bxd6 {[%clk 0:01:57.5]} 17... b5 {[%clk 0:01:21.8]} 18.
Be4 {[%clk 0:01:38]} 18... bxc4 {[%clk 0:01:11.2]} 19. Bxa8 {[%clk 0:01:34.6]}
19... Qxd6 {[%clk 0:01:10]} 20. Qe8+ {[%clk 0:01:34.7]} 20... Qf8 {[%clk
0:01:09.8]} 21. Re1 {[%clk 0:01:31.1]} 21... Be6 {[%clk 0:01:01.1]} 22. Qc6
{[%clk 0:01:16.1]} 22... Qc5 {[%clk 0:00:43.7]} 23. Qxc5 {[%clk 0:01:08.9]}
23... Bxc5 {[%clk 0:00:44.6]} 24. g4 {[%clk 0:00:58.4]} 24... Nf4 {[%clk
0:00:42.4]} 25. Bg2 {[%clk 0:00:48.6]} 25... Nd3 {[%clk 0:00:25.3]} 26. Re2
{[%clk 0:00:46.7]} 26... Bd4 {[%clk 0:00:22.2]} 27. b3 {[%clk 0:00:33]} 27... c3
{[%clk 0:00:21.2]} 28. Be4 {[%clk 0:00:28.7]} 28... Nc1 {[%clk 0:00:13.8]} 29.
Rc2 {[%clk 0:00:24.2]} 29... f5 {[%clk 0:00:12.3]} 30. Bb7 {[%clk 0:00:20.3]}
30... Nd3 {[%clk 0:00:10.2]} 31. Bxa6 {[%clk 0:00:17.9]} 31... Nb4 {[%clk
0:00:10.6]} 32. Re2 {[%clk 0:00:07.2]} 32... Nxa6 {[%clk 0:00:09.4]} 33. Rxe6
{[%clk 0:00:06.6]} 33... c2 {[%clk 0:00:09.6]} 34. Rc6 {[%clk 0:00:06.7]} 34...
Nb4 {[%clk 0:00:08.9]} 35. Rc8+ {[%clk 0:00:03.4]} 35... Kg7 {[%clk 0:00:08.6]}
36. a3 {[%clk 0:00:03.6]} 36... Bb2 {[%clk 0:00:08.1]} 37. axb4 {[%clk
0:00:01.1]} 37... c1=Q+ {[%clk 0:00:07.4]} 38. Rxc1 {[%clk 0:00:01.5]} 38...
Bxc1 {[%clk 0:00:08.3]} 0-1